[Event "Croatian Team Cup Final 2022"]
[Site "Vodice"]
[Date "2022.05.19"]
[Round "3.8"]
[White "Sale, Srdjan"]
[Black "Zelcic, Robert"]
[Result "1/2-1/2"]
[ECO "A30"]
[WhiteElo "2356"]
[BlackElo "2497"]
[Annotator "TA"]
[PlyCount "55"]
[EventDate "2022.05.18"]
[EventType "team-tourn"]
[EventCountry "CRO"]
[SourceTitle "playchess.com"]
[Source "ChessBase"]
[SourceQuality "1"]
[TimeControl "40/5400+30:1800+30"]

{[%evp 12,55,-10,-48,-38,-56,-27,-40,-44,-77,25,16,27,47,37,40,40,36,56,45,13,8,14,2,0,2,5,19,9,8,37,40,52,56,62,52,64,0,52,3,4,7,22,19,20,16]} 1. Nf3 {[%emt 0:00:10]} d5 {[%emt 0:01:01]} 2. g3 {[%emt 0:00:54]} c5 {[%emt 0:00:06]} 3. Bg2 {[%emt 0:00:13]} Nc6 {[%emt 0:00:05]} 4. O-O {[%emt 0:00:29]} e5 {[%emt 0:00:06]} 5. d3 {[%emt 0:00:10]} Be7 {[%emt 0:00:11]} 6. c4 {[%emt 0:00:41]} Nf6 {[%emt 0:02:01]} (6... dxc4 7. Qa4 Bd7 8. Qxc4 Nf6 9. Bg5 O-O 10. Bxf6 Bxf6 11. Nc3 Be7 12. Rac1 Rc8 13. Rfd1 a6 14. Qb3 b5 15. e3 Be6 16. Qc2 {0-1 (41) Sale,S (2399)-Zelcic,R (2527) Mali Losinj 2021}) 7. Nc3 {[%emt 0:03:56] [#] Strongly threatening cxd5.} d4 {[%emt 0:03:54] A30: Symmetrical English: Double Fianchetto and Hedgehog.} 8. Na4 {[%emt 0:00:31]} h6 {[%emt 0:00:05] has lost popularity (8...0-0).} 9. a3 {[%emt 0:00:48]} O-O {[%emt 0:03:10] [#] Black is slightly better.} 10. e4 $146 {[%emt 0:00:13]} ({Predecessor:} 10. Nd2 Qc7 11. Rb1 Be6 12. Ne4 Nd7 13. e3 f5 14. exd4 Nxd4 15. Nec3 Nf6 16. Ne2 {0-1 (50) Martinez Duany,L (2473)-Garavito,M (2243) Bogota 2013}) 10... dxe3 {[%emt 0:02:32]} (10... Bg4 $17) 11. Bxe3 $11 {[%emt 0:00:33]} Qa5 {[%emt 0:02:01]} 12. b4 {[%emt 0:05:59]} cxb4 {[%emt 0:01:10]} 13. axb4 {[%emt 0:00:09]} Qxb4 {[%emt 0:04:27] [#]} 14. Nb6 $1 {[%emt 0:14:06]} Rb8 {[%emt 0:00:01]} 15. Nd5 {[%emt 0:04:56]} Qd6 {[%emt 0:00:52]} ({Not} 15... Nxd5 16. cxd5 Nd4 17. Nxe5 $16) 16. Nxe7+ {[%emt 0:05:15]} (16. d4 {is interesting.} Nxd5 17. cxd5 exd4 18. Bf4) 16... Qxe7 {[%emt 0:00:07]} 17. Bxa7 {[%emt 0:00:09]} Nxa7 {[%emt 0:02:48]} 18. Rxa7 {[%emt 0:00:10]} Qc5 {[%emt 0:08:03]} 19. Qa1 {[%emt 0:03:45]} e4 {[%emt 0:00:49]} 20. dxe4 {[%emt 0:02:42][%cal Bd3e4,Be4e5][%mdl 32]} (20. Ra5 {is more complex.} b5 21. dxe4 Nxe4 22. cxb5 Rxb5 23. Rxb5 Qxb5 24. Nd4) 20... Qxc4 {[%emt 0:06:02]} 21. e5 {[%emt 0:02:50]} Nh7 {[%emt 0:10:22]} 22. Rc1 {[%emt 0:03:14]} Qb5 {[%emt 0:00:28]} 23. Rb1 {[%emt 0:07:16] White is more active.} (23. Ra5 $5 {[%cal Ra5b5]} Qb4 24. Rb1 $16) 23... Qc5 {[%emt 0:04:08]} 24. Rc1 {[%emt 0:05:24]} (24. Ra5 $14 b5 25. Rc1) 24... Qe7 {[%emt 0:05:07]} (24... Qb5 $11) 25. Qa3 {[%emt 0:10:05]} (25. h4 $14 {is more appropriate.}) 25... Qxa3 {[%emt 0:00:36] The position is equal.} 26. Rxa3 {[%emt 0:00:02]} Re8 {[%emt 0:00:12]} 27. Rb3 {[%emt 0:04:17]} Be6 {[%emt 0:12:54]} 28. Rb6 {[%emt 0:02:22] Weighted Error Value: White=0.12 (very precise) /Black=0.17 (very precise)} 1/2-1/2

[Event "Croatian Team Cup Final 2022"]
[Site "Vodice"]
[Date "2022.05.19"]
[Round "3.9"]
[White "Rezan, Sasa"]
[Black "Martinovic, Sasa"]
[Result "0-1"]
[ECO "E14"]
[WhiteElo "2394"]
[BlackElo "2552"]
[Annotator "TA"]
[PlyCount "80"]
[EventDate "2022.05.18"]
[EventType "team-tourn"]
[EventCountry "CRO"]
[SourceTitle "playchess.com"]
[Source "ChessBase"]
[SourceQuality "1"]
[TimeControl "40/5400+30:1800+30"]

{[%evp 19,80,0,0,0,0,0,0,0,0,-10,0,-116,-110,-156,-134,-136,-124,-174,-149,-223,-199,-257,-251,-257,-185,-174,-173,-183,-181,-240,-83,-381,-377,-329,-236,-382,-293,-601,-570,-1109,-738,-702,-614,-573,-563,-702,-694,-763,-778,-734,-767,-762,-750,-841,-824,-1163,-1149,-1145,-1152,-1089,-1081,-1017,-995]} 1. d4 {[%emt 0:00:02]} Nf6 {[%emt 0:00:04]} 2. c4 {[%emt 0:00:24]} e6 {[%emt 0:00:03]} 3. Nc3 {[%emt 0:00:30]} d5 {[%emt 0:00:05]} 4. e3 {[%emt 0:01:23]} b6 {[%emt 0:01:49]} 5. Nf3 {[%emt 0:03:34]} Bd6 {[%emt 0:00:20]} 6. Bd3 {[%emt 0:01:52]} Bb7 {[%emt 0:00:16]} 7. O-O {[%emt 0:03:01]} O-O {[%emt 0:01:14]} 8. b3 {[%emt 0:06:59]} Nbd7 {[%emt 0:02:18]} 9. Bb2 {[%emt 0:01:16]} a6 {[%emt 0:00:48]} 10. Rc1 {[%emt 0:02:45]} Qe7 {[%emt 0:02:09]} 11. Qe2 {[%emt 0:09:32] E14: Queen's Indian: Classical Variation (4 e3).} Ne4 {[%emt 0:00:58]} 12. Rfd1 {[%emt 0:02:16]} f5 {[%emt 0:02:43][%cal Bf7f5,Bf5e4][%mdl 32]} 13. Na4 {[%emt 0:06:37] The position is equal.} dxc4 {[%emt 0:21:43]} 14. bxc4 {[%emt 0:02:34] [#]} c5 $146 {[%emt 0:00:16]} ({Predecessor:} 14... Ng5 15. Nxg5 Qxg5 16. f4 Qe7 {½-½ (16) Polgar,Z (2535)-Dautov,R (2595) Brno 1991}) 15. Bxe4 {[%emt 0:20:59]} (15. Rb1 $11) 15... fxe4 $17 {[%emt 0:09:07]} 16. Ne5 {[%emt 0:10:37]} (16. Nd2 $142) 16... Nxe5 {[%emt 0:02:32]} 17. dxe5 {[%emt 0:00:06]} Bc7 {[%emt 0:00:04]} 18. Qc2 {[%emt 0:07:52]} (18. Bc3 $17 {was necessary.}) 18... Bc6 {[%emt 0:03:48]} 19. Rb1 {[%emt 0:00:14]} (19. Nc3 $17 {is a better defense.} Qf7 20. Rd2) 19... Rf5 {[%emt 0:07:50]} 20. Nc3 {[%emt 0:06:07]} (20. Bc3 $142) 20... Bxe5 $19 {[%emt 0:03:43]} 21. g3 {[%emt 0:02:34]} Qg5 {[%emt 0:08:28]} 22. Ne2 {[%emt 0:02:43]} Bc7 {[%emt 0:02:33] A strong pair of Bishops.} 23. Nf4 {[%emt 0:01:15]} Qh6 {[%emt 0:01:49]} ({Worse is} 23... Bxf4 24. exf4 Qh5 25. Rd6 $11) 24. Rd2 {[%emt 0:02:48]} (24. Qe2 $142) 24... Raf8 $2 {[%emt 0:01:29]} (24... g5 $19 {and Black stays clearly on top.} 25. Ng2 Raf8) 25. Rbd1 $2 {[%emt 0:00:51][%mdl 8192] [#]} (25. Qd1 $17) 25... g5 $1 {[%emt 0:09:27]} ({Inferior is} 25... Bxf4 26. exf4 g5 27. fxg5 (27. Rd6 $2 gxf4 28. g4 Qh3 $17) 27... Qxg5 28. Qc3 $17) 26. Ng2 {[%emt 0:00:46]} e5 {[%emt 0:00:40] Threatens to win with ...Qh3.} 27. Bc3 {[%emt 0:02:08]} (27. h4 {might work better.}) 27... Qe6 {[%emt 0:00:21]} 28. Rd5 $2 {[%emt 0:01:24]} (28. h4) 28... Rxf2 {[%emt 0:01:32] Black is clearly winning.} 29. Qxe4 {[%emt 0:00:41]} Bxd5 {[%emt 0:02:08]} 30. cxd5 {[%emt 0:00:11]} Qf5 {[%emt 0:03:11]} 31. Qxf5 {[%emt 0:00:20]} R2xf5 {[%emt 0:00:16]} 32. g4 {[%emt 0:01:21]} Rf3 {[%emt 0:00:41]} 33. d6 {[%emt 0:00:09] [#]} Bxd6 {[%emt 0:00:17]} 34. h4 {[%emt 0:00:14]} Bb8 {[%emt 0:01:12] White must now prevent ...gxh4.} 35. hxg5 {[%emt 0:00:15]} Kf7 {[%emt 0:02:11]} 36. Rd7+ {[%emt 0:00:34]} Ke6 {[%emt 0:00:13]} 37. Rxh7 {[%emt 0:00:13]} Rf1+ {[%emt 0:01:34]} 38. Kh2 {[%emt 0:00:01]} e4+ {[%emt 0:00:07]} 39. Nf4+ {[%emt 0:00:13]} Bxf4+ {[%emt 0:00:12]} 40. exf4 {[%emt 0:00:00]} R8xf4 {[%emt 0:00:00] White got outplayed after the opening.  Weighted Error Value: White=0.91/Black=0.36} 0-1

[Event "Croatian Team Cup Final 2022"]
[Site "Vodice"]
[Date "2022.05.19"]
[Round "3.10"]
[White "Livaic, Leon"]
[Black "Plenkovic, Zdenko"]
[Result "1-0"]
[ECO "E71"]
[WhiteElo "2562"]
[BlackElo "2375"]
[Annotator "TA"]
[PlyCount "51"]
[EventDate "2022.05.18"]
[EventType "team-tourn"]
[EventCountry "CRO"]
[SourceTitle "playchess.com"]
[Source "ChessBase"]
[SourceQuality "1"]
[TimeControl "40/5400+30:1800+30"]

{[%evp 13,51,36,35,46,51,48,49,38,41,43,45,33,27,27,63,52,60,55,66,62,157,62,60,63,56,26,183,73,327,266,290,299,452,439,441,428,1012,991,899,869]} 1. d4 {[%emt 0:00:05]} Nf6 {[%emt 0:00:06]} 2. c4 {[%emt 0:00:06]} g6 {[%emt 0:00:03]} 3. Nc3 {[%emt 0:00:04]} Bg7 {[%emt 0:00:05]} 4. e4 {[%emt 0:00:03]} d6 {[%emt 0:00:07]} 5. h3 {[%emt 0:00:13]} O-O {[%emt 0:00:14]} 6. Be3 {[%emt 0:00:02]} e5 {[%emt 0:01:17]} 7. d5 {[%emt 0:00:05]} Na6 {[%emt 0:00:43]} 8. g4 {[%emt 0:00:07] E71: King's Indian: 4 e4 d6 5 h3.} Nc5 {[%emt 0:00:14]} 9. f3 {[%emt 0:00:05]} c6 {[%emt 0:04:10]} 10. Qd2 {[%emt 0:01:44] White is slightly better.} cxd5 {[%emt 0:02:25]} 11. cxd5 {[%emt 0:00:05]} Bd7 {[%emt 0:01:06]} 12. Nge2 {[%emt 0:01:42][%cal Bg1e2,Be2c1,Bc1d3][%mdl 32]} Rc8 {[%emt 0:02:55]} 13. Nc1 {[%emt 0:01:33]} h5 {[%emt 0:14:23][%cal Rh5g4]} 14. Nd3 {[%emt 0:00:27] [#]} Na4 $146 {[%emt 0:07:00]} ({Predecessor:} 14... b6 15. Be2 Nxd3+ 16. Bxd3 Nh7 17. O-O-O h4 18. Rdg1 b5 19. Kb1 a6 20. g5 b4 {0-1 (48) Van Osmael,A (2240)-Tesic,Z (2354) ICCF email 2009}) 15. Nxa4 {[%emt 0:00:40]} Bxa4 {[%emt 0:00:05]} 16. Qb4 {[%emt 0:01:37]} b5 {[%emt 0:10:21]} (16... Be8 $14) 17. Rc1 {[%emt 0:19:48]} ({Not} 17. Bxa7 $2 Nxd5 18. exd5 Rc4 $19) (17. b3 $16) 17... Rxc1+ $14 {[%emt 0:04:23]} 18. Nxc1 {[%emt 0:00:22] [#] And now b3 would win.} a5 {[%emt 0:04:19]} 19. Qa3 {[%emt 0:02:26] Black must now prevent b3.} (19. Qd2 $5 {[%cal Rb2b3]} b4 20. Bd3 $14) 19... Qc7 $2 {[%emt 0:10:41]} (19... Nxe4 $11 {and Black stays safe.} 20. fxe4 Bc2 21. Bxb5 Bxe4) 20. Bd3 {[%emt 0:01:02]} (20. b3 $18 Qc3+ 21. Kf2) 20... Rc8 $2 {[%emt 0:02:43][%mdl 8192]} (20... Bc2 $16 21. Bxb5 Nxe4) 21. Rh2 {[%emt 0:20:01]} Nd7 {[%emt 0:11:38] [#]} 22. b3 $1 {[%emt 0:02:09]} Qc3+ {[%emt 0:00:26]} (22... Nc5 $142) 23. Kd1 $18 {[%emt 0:01:04] Hoping for Rc2. White is clearly winning.} ({And not} 23. Bd2 Qa1 24. bxa4 b4 $11) 23... Nc5 {[%emt 0:12:03]} 24. Rc2 {[%emt 0:01:48]} Nxd3 {[%emt 0:05:11]} (24... Qa1 $142 25. bxa4 b4) 25. Rxc3 {[%emt 0:00:04]} Rxc3 {[%emt 0:00:06]} 26. Nxd3 {[%emt 0:00:08] Weighted Error Value: White=0.21 (precise) /Black=0.61} ({Weaker is} 26. Ne2 b4 $16) 1-0

[Event "Croatian Team Cup Final 2022"]
[Site "Vodice"]
[Date "2022.05.19"]
[Round "3.11"]
[White "Bilobrk, Franjo"]
[Black "Cvitan, Ognjen"]
[Result "1/2-1/2"]
[ECO "E05"]
[WhiteElo "2347"]
[BlackElo "2454"]
[Annotator "TA"]
[PlyCount "29"]
[EventDate "2022.05.18"]
[EventType "team-tourn"]
[EventCountry "CRO"]
[SourceTitle "playchess.com"]
[Source "ChessBase"]
[SourceQuality "1"]
[TimeControl "40/5400+30:1800+30"]

{[%evp 18,29,16,14,23,24,31,24,33,25,39,35,29,6]} 1. d4 {[%emt 0:00:19]} Nf6 {[%emt 0:00:48]} 2. c4 {[%emt 0:00:32]} e6 {[%emt 0:00:31]} 3. Nf3 {[%emt 0:00:38]} d5 {[%emt 0:00:40]} 4. g3 {[%emt 0:00:55]} Be7 {[%emt 0:01:55]} 5. Bg2 {[%emt 0:00:12]} O-O {[%emt 0:00:14]} 6. O-O {[%emt 0:00:14]} dxc4 {[%emt 0:00:52]} 7. Qc2 {[%emt 0:03:31]} a6 {[%emt 0:04:32]} 8. a4 {[%emt 0:00:43]} Bd7 {[%emt 0:02:28]} 9. Qxc4 {[%emt 0:00:41]} Bc6 {[%emt 0:00:22]} 10. Bg5 {[%emt 0:01:04]} h6 {[%emt 0:01:16] [#] Strongly threatening ...Bd5. E05: Open Catalan: 5 Nf3 Be7.} 11. Bxf6 {[%emt 0:00:45]} Bxf6 {[%emt 0:00:07]} 12. Nc3 {[%emt 0:00:14]} Bxf3 {[%emt 0:00:22]} 13. Bxf3 {[%emt 0:00:02]} c6 {[%emt 0:00:05]} ({Don't take} 13... Nc6 14. Bxc6 bxc6 15. e3 $16 (15. Qxc6 Qxd4 16. Rfd1 Qb6 $11)) 14. e3 {[%emt 0:00:17]} a5 {[%emt 0:00:12] [#]} 15. Kg2 $146 {[%emt 0:02:58] Black did not feel at home in the position after the opening.  Weighted Error Value: White=0.00 (flawless) /Black=0.07 (flawless)} ({Predecessor:} 15. b4 axb4 16. Qxb4 Ra7 17. a5 Nd7 18. a6 Be7 19. Qc4 bxa6 20. Rxa6 Nb6 21. Qa2 Rxa6 22. Qxa6 {½-½ (33) Ding,L (2774)-Carlsen,M (2837) Saint Louis 2017}) 1/2-1/2

[Event "Croatian Team Cup Final 2022"]
[Site "Vodice"]
[Date "2022.05.19"]
[Round "3.12"]
[White "Rogic, Davor"]
[Black "Zelic, Mladen"]
[Result "1-0"]
[ECO "C63"]
[WhiteElo "2457"]
[BlackElo "2247"]
[Annotator "TA"]
[PlyCount "81"]
[EventDate "2022.05.18"]
[EventType "team-tourn"]
[EventCountry "CRO"]
[SourceTitle "playchess.com"]
[Source "ChessBase"]
[SourceQuality "1"]
[TimeControl "40/5400+30:1800+30"]

{[%evp 11,81,33,37,33,58,62,60,62,88,81,90,88,89,99,122,126,105,125,158,139,326,308,313,286,317,319,329,335,333,333,338,337,335,298,345,291,407,375,356,310,323,285,356,353,382,358,377,363,376,373,389,392,519,518,683,658,653,670,657,639,608,508,618,611,644,662,653,648,841,821,785,755]} 1. e4 {[%emt 0:01:50]} e5 {[%emt 0:00:18]} 2. Nf3 {[%emt 0:00:22]} Nc6 {[%emt 0:00:07]} 3. Bb5 {[%emt 0:00:21]} f5 {[%emt 0:00:07]} 4. d3 {[%emt 0:00:28]} fxe4 {[%emt 0:00:17]} 5. dxe4 {[%emt 0:00:12]} Nf6 {[%emt 0:00:04]} 6. O-O {[%emt 0:00:32]} d6 {[%emt 0:01:24]} 7. Bc4 {[%emt 0:02:47] C63: Ruy Lopez: Schliemann/Jaenisch Defence.} Na5 {[%emt 0:19:31]} 8. Be2 {[%emt 0:06:45] [#]} Nc6 $146 {[%emt 0:06:26]} ({Predecessor:} 8... Be7 9. b4 Nc6 10. b5 Na5 11. Bd2 b6 12. Bxa5 bxa5 13. Bc4 Bg4 14. Nc3 Rf8 {1-0 (71) Khusnutdinov,R (2484)-Christiansen,J (2582) Chess.com INT 2021}) 9. Ng5 {[%emt 0:04:05] White is slightly better.} Nd4 {[%emt 0:27:49] [#]} 10. Bc4 $1 {[%emt 0:02:28] And now c3 would win.} Qe7 {[%emt 0:01:37]} 11. Bf7+ {[%emt 0:13:32]} Kd8 {[%emt 0:00:18] Strongly threatening ...h6.} 12. Bc4 {[%emt 0:01:24]} Be6 {[%emt 0:09:55] Against Nf7+} 13. Nxe6+ {[%emt 0:02:32]} Nxe6 {[%emt 0:00:06]} 14. Nc3 {[%emt 0:00:36]} h6 {[%emt 0:07:24]} 15. Be3 $36 {[%emt 0:03:39][%mdl 2048] White is in control. White is more active.} g5 $2 {[%emt 0:01:56] [#]} (15... Kc8 $16 16. Nd5 Nxd5) 16. Nd5 $1 $18 {[%emt 0:00:54]} Qf7 {[%emt 0:06:22]} 17. Nxf6 {[%emt 0:02:20]} Qxf6 {[%emt 0:00:05]} 18. Qd5 $1 {[%emt 0:00:09][%csl LRb7,LRe6]} Kd7 {[%emt 0:00:11]} 19. Qxb7 {[%emt 0:03:14]} Bg7 {[%emt 0:00:17]} 20. Bxa7 {[%emt 0:06:06]} (20. Bd5 Ke7 21. Bxa7 Rhc8) 20... Rhc8 {[%emt 0:00:45]} 21. Bxe6+ {[%emt 0:07:12]} (21. Bd5 $6 Nd8 22. Qxa8 Rxa8 23. Bxa8 Nc6 $18) 21... Qxe6 {[%emt 0:00:18]} 22. b3 {[%emt 0:00:13] Inhibits Qc4.} h5 {[%emt 0:03:27]} 23. Rad1 {[%emt 0:03:38][%cal Ba1d1,Bd1d3,Bd3c3][%mdl 32]} g4 {[%emt 0:02:59]} 24. Rd3 {[%emt 0:01:35]} h4 {[%emt 0:01:53]} 25. Rfd1 {[%emt 0:00:57][%cal Bf1d1,Bd1d3,Bd3d5][%mdl 32] Black must now prevent Rxd6+.} (25. Rc3 Ke8 26. Be3 (26. Rxc7 Rxc7 27. Qxa8+ Qc8 $18) 26... Rab8 27. Qc6+ Ke7 $18) 25... Ke8 {[%emt 0:03:44]} 26. h3 {[%emt 0:01:38]} Bh6 {[%emt 0:01:41]} 27. a4 {[%emt 0:07:42]} Bf4 {[%emt 0:00:46]} 28. Kf1 {[%emt 0:04:20]} Kf8 {[%emt 0:01:34]} 29. Rc3 {[%emt 0:03:52]} Kg8 {[%emt 0:01:24]} 30. Rdd3 {[%emt 0:00:42]} ({Don't take} 30. Rxc7 Rxc7 31. Qxa8+ (31. Qxc7 gxh3 32. Rxd6 hxg2+ 33. Kg1 Qg4 $11) 31... Kg7 $18) 30... c5 {[%emt 0:00:32]} 31. hxg4 {[%emt 0:00:58]} Rd8 {[%emt 0:01:02]} 32. Bb6 {[%emt 0:01:14][%cal Ba7b6,Bb6c7,Bc7d8][%mdl 32] White is clearly winning.} Rf8 {[%emt 0:00:49]} 33. Qd5 {[%emt 0:00:36]} Qxd5 {[%emt 0:01:02]} 34. Rxd5 {[%emt 0:00:19]} Rf6 {[%emt 0:00:45]} 35. Bc7 {[%emt 0:02:10]} Ra6 {[%emt 0:00:31]} 36. Bd8 {[%emt 0:02:10]} Rh6 {[%emt 0:00:29]} 37. Rh3 {[%emt 0:01:30]} c4 {[%emt 0:00:26]} 38. Rc3 {[%emt 0:01:48]} cxb3 {[%emt 0:00:35]} 39. cxb3 {[%emt 0:00:05]} Rh7 {[%emt 0:00:21]} 40. a5 {[%emt 0:00:00]} Rb7 {[%emt 0:00:00]} 41. Bb6 {[%emt 0:01:22] Black got outplayed after the opening.  Weighted Error Value: White=0.11 (very precise) /Black=0.31} 1-0

[Event "Croatian Team Cup Final 2022"]
[Site "Vodice"]
[Date "2022.05.19"]
[Round "3.13"]
[White "Jovanovic, Zoran"]
[Black "Fercec, Nenad"]
[Result "1/2-1/2"]
[ECO "B53"]
[WhiteElo "2523"]
[BlackElo "2415"]
[Annotator "TA"]
[PlyCount "61"]
[EventDate "2022.05.18"]
[EventType "team-tourn"]
[EventCountry "CRO"]
[SourceTitle "playchess.com"]
[Source "ChessBase"]
[SourceQuality "1"]
[TimeControl "40/5400+30:1800+30"]

{[%evp 20,61,0,0,0,0,0,0,51,46,45,43,83,85,91,87,111,125,109,111,114,115,131,122,121,128,129,129,134,129,109,120,135,57,60,18,16,10,27,4,14,10,69,41]} 1. e4 {[%emt 0:00:02]} c5 {[%emt 0:00:24]} 2. Nf3 {[%emt 0:00:09]} d6 {[%emt 0:00:14]} 3. d4 {[%emt 0:00:10]} cxd4 {[%emt 0:00:18]} 4. Qxd4 {[%emt 0:00:07]} Nc6 {[%emt 0:00:50]} 5. Bb5 {[%emt 0:00:06]} Bd7 {[%emt 0:00:13]} 6. Bxc6 {[%emt 0:00:06]} Bxc6 {[%emt 0:00:05]} 7. Nc3 {[%emt 0:01:54]} Nf6 {[%emt 0:00:11]} 8. Bg5 {[%emt 0:00:14]} e6 {[%emt 0:00:11]} 9. O-O-O {[%emt 0:01:39]} Be7 {[%emt 0:00:07]} 10. Rhe1 {[%emt 0:00:17]} O-O {[%emt 0:00:52]} 11. e5 {[%emt 0:01:26]} dxe5 {[%emt 0:00:30] B53: Sicilian: 2...d6: Lines with Qxd4.} 12. Nxe5 $1 {[%emt 0:03:49][%mdl 4] now scores much better than the old 12.Qh4.} Qxd4 {[%emt 0:04:10]} 13. Rxd4 {[%emt 0:00:23] [#]} Nd5 $146 {[%emt 1:11:38]} (13... Rfc8 $11) ({Predecessor:} 13... Rfc8 14. Nxc6 Rxc6 15. Ne4 Rac8 16. Re2 Kf8 17. Nxf6 Bxf6 18. Bxf6 gxf6 19. Rd7 R6c7 {½-½ (69) Van Foreest,J (2702)-Niemann,H (2645) Warsaw 2021}) 14. Bxe7 $14 {[%emt 0:07:08]} Nxe7 {[%emt 0:00:08]} 15. Nxc6 {[%emt 0:00:10]} bxc6 {[%emt 0:00:23]} 16. Ne4 {[%emt 0:08:56]} Nd5 {[%emt 0:01:16][%cal Be7d5,Bd5f4,Bf4h3,Bh3f2][%mdl 32]} 17. Nc5 {[%emt 0:06:55]} Rfe8 {[%emt 0:01:04]} 18. c4 {[%emt 0:03:10]} e5 {[%emt 0:03:14]} 19. Rd2 {[%emt 0:02:48]} ({Not} 19. cxd5 $2 exd4 20. Rxe8+ Rxe8 21. dxc6 Rc8 $19) 19... Nf4 {[%emt 0:02:01]} 20. g3 {[%emt 0:00:28]} Nh3 {[%emt 0:00:45] [#]} 21. Rde2 $1 {[%emt 0:10:46]} Red8 {[%emt 0:00:54]} 22. Rxe5 {[%emt 0:01:30]} Nxf2 {[%emt 0:00:09]} 23. Re7 {[%emt 0:00:10] aiming for Rf1.} Ng4 {[%emt 0:00:26]} 24. Nb7 {[%emt 0:01:28] White is more active.} Rf8 {[%emt 0:00:25]} 25. R1e2 {[%emt 0:06:02]} f6 {[%emt 0:00:44] [#]} 26. Nc5 {[%emt 0:01:48]} (26. R2e6 $1 $16) 26... Rf7 {[%emt 0:04:27]} 27. Re8+ {[%emt 0:07:39]} (27. R7e4 $5 {[%cal Re4g4]} Ne5 28. Kc2 $14) 27... Rxe8 {[%emt 0:00:20]} 28. Rxe8+ {[%emt 0:00:01]} Rf8 {[%emt 0:00:10]} 29. Re7 {[%emt 0:00:09] Strongly threatening Ne6.} Rf7 $1 {[%emt 0:00:10]} 30. Re2 {[%emt 0:04:17]} g5 {[%emt 0:02:16]} (30... Ne5 $11) 31. Nd3 {[%emt 0:01:25] Weighted Error Value: White=0.08 (flawless) /Black=0.14 (very precise)} 1/2-1/2

[Event "Croatian Team Cup Final 2022"]
[Site "Vodice"]
[Date "2022.05.19"]
[Round "3.14"]
[White "Zufic, Miroslav"]
[Black "Bukal, Vladimir Jr."]
[Result "1/2-1/2"]
[ECO "D02"]
[WhiteElo "2384"]
[BlackElo "2371"]
[Annotator "TA"]
[PlyCount "69"]
[EventDate "2022.05.18"]
[EventType "team-tourn"]
[EventCountry "CRO"]
[SourceTitle "playchess.com"]
[Source "ChessBase"]
[SourceQuality "1"]
[TimeControl "40/5400+30:1800+30"]

{[%evp 9,69,10,5,0,12,12,13,13,28,8,10,6,7,-6,-6,-6,0,-21,-20,-25,-22,-32,-22,-27,-17,-36,-31,-40,-31,-43,-35,-65,-52,-78,-72,-106,-74,-140,-138,-145,-144,-135,-103,-100,104,104,101,104,102,105,112,108,101,89,104,61,79,0,93,0,102,0]} 1. d4 {[%emt 0:00:12]} d5 {[%emt 0:03:10]} 2. Bf4 {[%emt 0:01:48]} e6 {[%emt 0:00:49]} 3. e3 {[%emt 0:00:24]} Nf6 {[%emt 0:00:44]} 4. Nf3 {[%emt 0:07:44]} Bd6 {[%emt 0:00:34]} 5. Nbd2 {[%emt 0:00:19]} b6 {[%emt 0:00:20]} 6. Bd3 {[%emt 0:06:33] D02: 1 d4 d5 2 Nf3 sidelines, including 2...Nf6 3 g3 and 2...Nf6 3 Bf4.} Ba6 {[%emt 0:05:30]} 7. Bxa6 {[%emt 0:04:20]} Nxa6 {[%emt 0:00:18]} 8. Bg5 {[%emt 0:03:25][%cal Oe3e4] The position is equal.} Be7 {[%emt 0:10:35]} 9. c3 {[%emt 0:15:42] Hoping for Qa4+.} O-O {[%emt 0:03:27]} 10. Qe2 {[%emt 0:01:24]} Nb8 {[%emt 0:01:41] [#]} 11. Bxf6 $146 {[%emt 0:07:29]} ({Predecessor:} 11. h4 c5 12. Bxf6 Bxf6 13. g4 Nc6 14. g5 Be7 15. Ne5 Nxe5 16. dxe5 d4 17. f4 dxc3 18. bxc3 {1-0 (32) Indjic,A (2607)-Sammed Jaykumar,S (2412) Chess.com INT 2021}) 11... Bxf6 {[%emt 0:01:04]} 12. e4 {[%emt 0:01:56]} c5 {[%emt 0:01:43]} 13. e5 {[%emt 0:01:20]} Be7 {[%emt 0:00:03]} 14. O-O {[%emt 0:03:57]} Nc6 {[%emt 0:06:51]} 15. Rfd1 {[%emt 0:05:22]} Qc8 {[%emt 0:07:33]} 16. Nf1 {[%emt 0:06:28]} Qb7 {[%emt 0:05:42]} 17. Ne3 {[%emt 0:03:53]} b5 {[%emt 0:02:34]} 18. h4 {[%emt 0:01:42]} Rfd8 {[%emt 0:11:23]} 19. g3 {[%emt 0:04:31]} a5 {[%emt 0:01:55][%cal Ba7a5,Ba5a4][%mdl 32]} 20. Ng5 {[%emt 0:05:31]} h6 $1 {[%emt 0:07:05]} 21. Nh3 {[%emt 0:13:33]} a4 {[%emt 0:01:01]} 22. a3 {[%emt 0:01:44]} b4 {[%emt 0:04:04]} 23. Nf4 {[%emt 0:00:55]} (23. axb4 $142 cxb4 24. cxb4) 23... bxa3 {[%emt 0:07:07]} 24. bxa3 {[%emt 0:00:07]} cxd4 {[%emt 0:00:15]} 25. cxd4 {[%emt 0:00:01]} Qa7 {[%emt 0:00:14]} 26. Qg4 {[%emt 0:01:00][%cal Of4e6] Strongly threatening Nxe6!} Bf8 $2 {[%emt 0:01:02] [#]} (26... Nxd4 $2 27. Nh5 Bf8 28. Rxd4 $18) (26... Kh8 $17 {keeps the pressure on.}) 27. Nxe6 $1 $16 {[%emt 0:01:10][%mdl 512]} h5 {[%emt 0:09:07] [#]} 28. Qh3 {[%emt 0:00:05] 0x0.001df4e95fcddp-1022s more active pieces.} ({Stronger than} 28. Nxd8 hxg4 29. Nxc6 Qd7 $17) 28... Qd7 {[%emt 0:03:34][%mdl 64] Pin} 29. Nf4 {[%emt 0:00:14][%cal Be6f4,Bf4h3,Bh3f4][%mdl 32] Pair of Knights!} ({Inferior is} 29. Nxd8 Qxh3 30. Nxc6 Qd7 $17) 29... Qxh3 {[%emt 0:00:23]} 30. Nxh3 {[%emt 0:00:02]} Rab8 {[%emt 0:00:01]} 31. Nf4 {[%emt 0:00:57][%csl LRd5,LRh5]} Rb3 {[%emt 0:00:05]} 32. Nc2 {[%emt 0:02:04]} Rb2 {[%emt 0:03:24]} 33. Ne3 {[%emt 0:00:21]} Rb3 {[%emt 0:00:07]} 34. Nc2 {[%emt 0:00:35]} Rb2 $1 {[%emt 0:00:02]} 35. Ne3 {[%emt 0:00:28] Weighted Error Value: White=0.20 (precise) /Black=0.17 (very precise)} (35. Rac1 $16) 1/2-1/2